[Event "*** Titled Tuesday Blitz"]
[Site "Chess.com"]
[Date "2020.10.20"]
[Round "11"]
[White "Chernobay_Artem"]
[Black "1stSecond"]
[Result "0-1"]
[WhiteElo "2597"]
[BlackElo "2774"]
[TimeControl "180+1"]
[EndTime "12:08:24 PDT"]
[Termination "1stSecond won by resignation"]

1. d4 {[%clk 0:03:00.9]} 1... Nf6 {[%clk 0:03:00.2]} 2. c4 {[%clk 0:03:00.4]}
2... c5 {[%clk 0:03:00.8]} 3. d5 {[%clk 0:03:00.2]} 3... e6 {[%clk 0:03:01.2]}
4. Nc3 {[%clk 0:03:00.6]} 4... exd5 {[%clk 0:03:01.7]} 5. cxd5 {[%clk
0:03:01.5]} 5... g6 {[%clk 0:03:02.2]} 6. e4 {[%clk 0:03:01.9]} 6... Bg7 {[%clk
0:03:02.7]} 7. f4 {[%clk 0:03:01]} 7... d6 {[%clk 0:03:01.1]} 8. Bb5+ {[%clk
0:02:58.1]} 8... Nfd7 {[%clk 0:03:01.2]} 9. Bd3 {[%clk 0:02:53]} 9... O-O {[%clk
0:02:58.8]} 10. Nf3 {[%clk 0:02:52.9]} 10... Re8 {[%clk 0:02:53.2]} 11. O-O
{[%clk 0:02:53.1]} 11... a6 {[%clk 0:02:49.5]} 12. a4 {[%clk 0:02:52.6]} 12...
Qc7 {[%clk 0:02:49.1]} 13. Qe1 {[%clk 0:02:44.5]} 13... c4 {[%clk 0:02:49.2]}
14. Bc2 {[%clk 0:02:44.4]} 14... Nc5 {[%clk 0:02:49.8]} 15. Qh4 {[%clk
0:02:35.6]} 15... Nbd7 {[%clk 0:02:41.2]} 16. f5 {[%clk 0:02:08.5]} 16... Ne5
{[%clk 0:02:24.2]} 17. f6 {[%clk 0:02:01.5]} 17... Nxf3+ {[%clk 0:02:03.8]} 18.
Rxf3 {[%clk 0:02:02.4]} 18... Bh8 {[%clk 0:02:04.2]} 19. Bg5 {[%clk 0:01:34.7]}
19... Bd7 {[%clk 0:01:46.1]} 20. Raf1 {[%clk 0:01:25.4]} 20... Re5 {[%clk
0:01:42.6]} 21. g4 {[%clk 0:01:11.7]} 21... Rf8 {[%clk 0:00:54.2]} 22. Kh1
{[%clk 0:00:59.4]} 22... Qc8 {[%clk 0:00:51.4]} 23. Rg1 {[%clk 0:00:51.7]} 23...
Nd3 {[%clk 0:00:32.2]} 24. Bxd3 {[%clk 0:00:50]} 24... cxd3 {[%clk 0:00:33.1]}
25. Qh6 {[%clk 0:00:38.3]} 25... Bxg4 {[%clk 0:00:22]} 26. Rf4 {[%clk
0:00:38.6]} 26... Rxg5 {[%clk 0:00:16.3]} 27. Qxg5 {[%clk 0:00:37.5]} 27... Be2
{[%clk 0:00:15.6]} 28. Qh6 {[%clk 0:00:31.7]} 28... Re8 {[%clk 0:00:06.7]} 29.
Nxe2 {[%clk 0:00:30.3]} 29... dxe2 {[%clk 0:00:07.1]} 30. Rh4 {[%clk 0:00:30.7]}
30... Bxf6 {[%clk 0:00:07.6]} 31. Qxh7+ {[%clk 0:00:28.1]} 31... Kf8 {[%clk
0:00:08.1]} 32. Rf4 {[%clk 0:00:27.7]} 32... Ke7 {[%clk 0:00:06.6]} 33. Rf2
{[%clk 0:00:19.2]} 33... Rh8 {[%clk 0:00:06.7]} 0-1

[Event "*** Titled Tuesday Blitz"]
[Site "Chess.com"]
[Date "2020.10.20"]
[Round "11"]
[White "Shuvalov"]
[Black "Trickov"]
[Result "1-0"]
[WhiteElo "2483"]
[BlackElo "2351"]
[TimeControl "180+1"]
[EndTime "12:08:24 PDT"]
[Termination "Shuvalov won on time"]

1. b4 {[%clk 0:02:53.6]} 1... a5 {[%clk 0:02:55.4]} 2. b5 {[%clk 0:02:53.3]}
2... c5 {[%clk 0:02:55.2]} 3. e4 {[%clk 0:02:51.8]} 3... b6 {[%clk 0:02:55.2]}
4. c4 {[%clk 0:02:46.7]} 4... Bb7 {[%clk 0:02:54.8]} 5. Nc3 {[%clk 0:02:47]}
5... d6 {[%clk 0:02:52.6]} 6. g3 {[%clk 0:02:45.1]} 6... Nf6 {[%clk 0:02:46.6]}
7. Bg2 {[%clk 0:02:45.1]} 7... g6 {[%clk 0:02:46.9]} 8. Nge2 {[%clk 0:02:43.8]}
8... Bg7 {[%clk 0:02:47.1]} 9. O-O {[%clk 0:02:43.9]} 9... O-O {[%clk
0:02:46.6]} 10. d3 {[%clk 0:02:38.8]} 10... Nbd7 {[%clk 0:02:45.5]} 11. h3
{[%clk 0:02:36.2]} 11... h6 {[%clk 0:02:45.1]} 12. f4 {[%clk 0:02:35.8]} 12...
e6 {[%clk 0:02:44.2]} 13. Bb2 {[%clk 0:02:29.9]} 13... Qc7 {[%clk 0:02:39.7]}
14. Rb1 {[%clk 0:02:27.7]} 14... Rad8 {[%clk 0:02:38.8]} 15. g4 {[%clk
0:02:25.4]} 15... Qb8 {[%clk 0:02:20.5]} 16. Qe1 {[%clk 0:02:24.3]} 16... Qa8
{[%clk 0:02:18.6]} 17. Qg3 {[%clk 0:02:23]} 17... d5 {[%clk 0:02:11.6]} 18. cxd5
{[%clk 0:02:15.8]} 18... exd5 {[%clk 0:02:11.1]} 19. e5 {[%clk 0:02:16.1]} 19...
Nh7 {[%clk 0:02:09.5]} 20. d4 {[%clk 0:02:14.4]} 20... c4 {[%clk 0:02:07.3]} 21.
f5 {[%clk 0:02:08.5]} 21... Rfe8 {[%clk 0:01:58.4]} 22. Nf4 {[%clk 0:01:55.5]}
22... Nxe5 {[%clk 0:01:46.3]} 23. dxe5 {[%clk 0:01:53.5]} 23... Bxe5 {[%clk
0:01:46.2]} 24. Nce2 {[%clk 0:01:41.3]} 24... g5 {[%clk 0:01:27.3]} 25. Bxe5
{[%clk 0:01:34.1]} 25... Rxe5 {[%clk 0:01:26.9]} 26. Nd4 {[%clk 0:01:30.3]}
26... gxf4 {[%clk 0:01:13]} 27. Qxf4 {[%clk 0:01:31.2]} 27... Re4 {[%clk
0:01:10.4]} 28. Bxe4 {[%clk 0:01:30.2]} 28... dxe4 {[%clk 0:01:10.6]} 29. Rbd1
{[%clk 0:01:26.5]} 29... Ng5 {[%clk 0:01:06.6]} 30. Kh2 {[%clk 0:01:21.5]} 30...
Qb8 {[%clk 0:00:54.8]} 31. Qxb8 {[%clk 0:01:17]} 31... Rxb8 {[%clk 0:00:54.2]}
32. h4 {[%clk 0:01:17.1]} 32... Nf3+ {[%clk 0:00:53.7]} 33. Nxf3 {[%clk
0:01:16.8]} 33... exf3 {[%clk 0:00:53.9]} 34. Rd7 {[%clk 0:01:14]} 34... Ba8
{[%clk 0:00:42.7]} 35. Rc7 {[%clk 0:01:12.3]} 35... Bd5 {[%clk 0:00:39]} 36. Kg3
{[%clk 0:01:09.9]} 36... Re8 {[%clk 0:00:24.5]} 37. Rd1 {[%clk 0:01:06.9]} 37...
Rd8 {[%clk 0:00:13.7]} 38. Rxc4 {[%clk 0:01:02]} 38... Bxc4 {[%clk 0:00:12.6]}
39. Rxd8+ {[%clk 0:01:02.1]} 39... Kg7 {[%clk 0:00:13.2]} 40. a4 {[%clk
0:01:01]} 40... Bb3 {[%clk 0:00:13]} 41. Rd6 {[%clk 0:00:58.9]} 41... Bxa4
{[%clk 0:00:12]} 42. Rxb6 {[%clk 0:00:59.1]} 42... Bb3 {[%clk 0:00:12.2]} 43.
Kxf3 {[%clk 0:00:58.3]} 43... a4 {[%clk 0:00:10]} 44. Ra6 {[%clk 0:00:57.9]}
44... Bc4 {[%clk 0:00:09.6]} 45. Ra5 {[%clk 0:00:56.7]} 45... a3 {[%clk
0:00:08.9]} 46. b6 {[%clk 0:00:56.5]} 46... a2 {[%clk 0:00:09]} 47. Ke4 {[%clk
0:00:56.4]} 47... Bf1 {[%clk 0:00:03.4]} 48. Rxa2 {[%clk 0:00:55.6]} 48... Bg2+
{[%clk 0:00:03.4]} 49. Rxg2 {[%clk 0:00:54.9]} 1-0

[Event "*** Titled Tuesday Blitz"]
[Site "Chess.com"]
[Date "2020.10.20"]
[Round "11"]
[White "ViditYT"]
[Black "LittlePeasant"]
[Result "0-1"]
[WhiteElo "2911"]
[BlackElo "2829"]
[TimeControl "180+1"]
[EndTime "12:08:25 PDT"]
[Termination "LittlePeasant won on time"]

1. d4 {[%clk 0:03:00.9]} 1... Nf6 {[%clk 0:02:58.7]} 2. c4 {[%clk 0:03:00.8]}
2... e6 {[%clk 0:02:59.6]} 3. Nf3 {[%clk 0:03:00.6]} 3... d5 {[%clk 0:03:00.3]}
4. g3 {[%clk 0:03:00.7]} 4... a6 {[%clk 0:02:48.1]} 5. Bg2 {[%clk 0:02:50.8]}
5... dxc4 {[%clk 0:02:48.3]} 6. O-O {[%clk 0:02:50.8]} 6... Nc6 {[%clk
0:02:45.7]} 7. e3 {[%clk 0:02:50.2]} 7... b5 {[%clk 0:02:35.1]} 8. Ne5 {[%clk
0:02:42.2]} 8... Nxe5 {[%clk 0:02:35.3]} 9. Bxa8 {[%clk 0:02:42.3]} 9... Ned7
{[%clk 0:02:28]} 10. b3 {[%clk 0:02:35.6]} 10... cxb3 {[%clk 0:02:23.7]} 11.
axb3 {[%clk 0:02:35]} 11... Bd6 {[%clk 0:02:24.6]} 12. Bg2 {[%clk 0:02:28.9]}
12... O-O {[%clk 0:02:24.4]} 13. Bb2 {[%clk 0:02:28.4]} 13... Qe7 {[%clk
0:02:21.5]} 14. Nd2 {[%clk 0:02:20.4]} 14... e5 {[%clk 0:02:15]} 15. Qc2 {[%clk
0:02:20.2]} 15... Re8 {[%clk 0:02:11.7]} 16. e4 {[%clk 0:02:09.7]} 16... Bb7
{[%clk 0:02:08.3]} 17. d5 {[%clk 0:02:04.9]} 17... Rc8 {[%clk 0:01:54.4]} 18.
Rfc1 {[%clk 0:02:01.8]} 18... Bc5 {[%clk 0:01:50.7]} 19. h3 {[%clk 0:01:52.3]}
19... Ne8 {[%clk 0:01:50]} 20. Nf3 {[%clk 0:01:48.2]} 20... f6 {[%clk
0:01:40.8]} 21. h4 {[%clk 0:01:33.9]} 21... Nd6 {[%clk 0:01:33.8]} 22. Bh3
{[%clk 0:01:34.1]} 22... Bb6 {[%clk 0:01:34.3]} 23. Ba3 {[%clk 0:01:33.1]} 23...
a5 {[%clk 0:01:25.2]} 24. Bxd6 {[%clk 0:01:28.2]} 24... Qxd6 {[%clk 0:01:04.2]}
25. Qd3 {[%clk 0:01:23.1]} 25... Nc5 {[%clk 0:00:47.2]} 26. Qxb5 {[%clk
0:00:48.5]} 26... Ba6 {[%clk 0:00:47.3]} 27. Qc6 {[%clk 0:00:40.8]} 27... Qxc6
{[%clk 0:00:47.7]} 28. dxc6 {[%clk 0:00:41.7]} 28... Rb8 {[%clk 0:00:48.6]} 29.
Nd2 {[%clk 0:00:19.7]} 29... Nd3 {[%clk 0:00:42.6]} 30. Rf1 {[%clk 0:00:19.8]}
30... Nb4 {[%clk 0:00:38.6]} 31. Nc4 {[%clk 0:00:19.6]} 31... Nxc6 {[%clk
0:00:33.8]} 32. Rfd1 {[%clk 0:00:11.2]} 32... Bd4 {[%clk 0:00:31.9]} 33. Rac1
{[%clk 0:00:10]} 33... Rxb3 {[%clk 0:00:24.9]} 34. Be6+ {[%clk 0:00:03]} 34...
Kf8 {[%clk 0:00:24.9]} 35. Nd2 {[%clk 0:00:01.5]} 35... Rxg3+ {[%clk 0:00:21.8]}
36. Kh2 {[%clk 0:00:01.9]} 36... Rc3 {[%clk 0:00:21.8]} 0-1

[Event "*** Titled Tuesday Blitz"]
[Site "Chess.com"]
[Date "2020.10.20"]
[Round "11"]
[White "natelleka"]
[Black "MoreChessJulia"]
[Result "0-1"]
[WhiteElo "2182"]
[BlackElo "2017"]
[TimeControl "180+1"]
[EndTime "12:08:26 PDT"]
[Termination "MoreChessJulia won on time"]

1. e4 {[%clk 0:03:00.9]} 1... g6 {[%clk 0:02:57.8]} 2. d4 {[%clk 0:02:59.8]}
2... Bg7 {[%clk 0:02:57.1]} 3. Nc3 {[%clk 0:03:00.3]} 3... c5 {[%clk 0:02:54.4]}
4. Nf3 {[%clk 0:02:59.3]} 4... cxd4 {[%clk 0:02:53.5]} 5. Nxd4 {[%clk
0:02:57.4]} 5... Nc6 {[%clk 0:02:53.5]} 6. Nb3 {[%clk 0:02:56.7]} 6... d6 {[%clk
0:02:52]} 7. Be2 {[%clk 0:02:56.2]} 7... Nf6 {[%clk 0:02:49.4]} 8. Bg5 {[%clk
0:02:55.9]} 8... h6 {[%clk 0:02:47.6]} 9. Bh4 {[%clk 0:02:54.2]} 9... O-O {[%clk
0:02:46.5]} 10. O-O {[%clk 0:02:53.8]} 10... Ne8 {[%clk 0:02:39.1]} 11. Re1
{[%clk 0:02:51.9]} 11... g5 {[%clk 0:02:37.9]} 12. Bg3 {[%clk 0:02:50.6]} 12...
e6 {[%clk 0:02:32]} 13. Qd2 {[%clk 0:02:42.6]} 13... a6 {[%clk 0:02:31]} 14. a4
{[%clk 0:02:41.6]} 14... f5 {[%clk 0:02:30.5]} 15. exf5 {[%clk 0:02:32.6]} 15...
exf5 {[%clk 0:02:29.1]} 16. Bc4+ {[%clk 0:02:28.9]} 16... Kh8 {[%clk 0:02:28.2]}
17. f3 {[%clk 0:02:22.5]} 17... f4 {[%clk 0:02:27.1]} 18. Bf2 {[%clk 0:02:21.8]}
18... Ne5 {[%clk 0:02:26.6]} 19. Bd5 {[%clk 0:02:13.9]} 19... Nf6 {[%clk
0:02:23.6]} 20. Rad1 {[%clk 0:02:05.1]} 20... g4 {[%clk 0:02:23]} 21. fxg4
{[%clk 0:01:50.6]} 21... Nexg4 {[%clk 0:02:21.1]} 22. Bd4 {[%clk 0:01:43.3]}
22... Ne3 {[%clk 0:02:14.7]} 23. Bxe3 {[%clk 0:01:37.2]} 23... fxe3 {[%clk
0:02:13.7]} 24. Rxe3 {[%clk 0:01:28.3]} 24... Ng4 {[%clk 0:02:10.6]} 25. Rf3
{[%clk 0:01:08.3]} 25... Bf5 {[%clk 0:02:00.4]} 26. Nd4 {[%clk 0:00:57.8]} 26...
Qd7 {[%clk 0:01:27.8]} 27. Nxf5 {[%clk 0:00:52.4]} 27... Rxf5 {[%clk 0:01:26.3]}
28. Rxf5 {[%clk 0:00:51.9]} 28... Qxf5 {[%clk 0:01:25.4]} 29. Rf1 {[%clk
0:00:49.7]} 29... Qh5 {[%clk 0:01:22.4]} 30. h3 {[%clk 0:00:47.2]} 30... Nf6
{[%clk 0:01:19.3]} 31. Bxb7 {[%clk 0:00:42.2]} 31... Rb8 {[%clk 0:01:13.1]} 32.
Bxa6 {[%clk 0:00:21.9]} 32... Qc5+ {[%clk 0:01:11.7]} 33. Kh1 {[%clk 0:00:20.5]}
33... Rxb2 {[%clk 0:01:10.1]} 34. Bb5 {[%clk 0:00:18]} 34... Nh5 {[%clk
0:01:00.6]} 35. Ne2 {[%clk 0:00:13.3]} 35... Rxc2 {[%clk 0:00:57.7]} 36. Qd1
{[%clk 0:00:07.7]} 36... Be5 {[%clk 0:00:53.7]} 37. Rf8+ {[%clk 0:00:03.2]}
37... Kg7 {[%clk 0:00:53.1]} 38. Rb8 {[%clk 0:00:02.4]} 38... Rxe2 {[%clk
0:00:49.3]} 39. Bxe2 {[%clk 0:00:02.3]} 39... Ng3+ {[%clk 0:00:48.9]} 40. Kh2
{[%clk 0:00:02.9]} 40... Nxe2+ {[%clk 0:00:48.3]} 41. Kh1 {[%clk 0:00:03.6]}
41... Ng3+ {[%clk 0:00:47.9]} 42. Kh2 {[%clk 0:00:03.8]} 42... Ne4+ {[%clk
0:00:43.4]} 43. Kh1 {[%clk 0:00:04]} 43... Nf2+ {[%clk 0:00:43.4]} 0-1

[Event "*** Titled Tuesday Blitz"]
[Site "Chess.com"]
[Date "2020.10.20"]
[Round "11"]
[White "onetowin"]
[Black "MaxLeto"]
[Result "0-1"]
[WhiteElo "2109"]
[BlackElo "2301"]
[TimeControl "180+1"]
[EndTime "12:08:26 PDT"]
[Termination "MaxLeto won on time"]

1. d4 {[%clk 0:03:00.9]} 1... a6 {[%clk 0:03:00.9]} 2. Nf3 {[%clk 0:02:58.9]}
2... b6 {[%clk 0:03:01.8]} 3. g3 {[%clk 0:02:59.1]} 3... c6 {[%clk 0:03:02.7]}
4. Bg2 {[%clk 0:02:59.1]} 4... d6 {[%clk 0:03:03.6]} 5. O-O {[%clk 0:02:58]}
5... e6 {[%clk 0:03:04.5]} 6. c4 {[%clk 0:02:57.8]} 6... f6 {[%clk 0:03:05.4]}
7. Nc3 {[%clk 0:02:57.1]} 7... g6 {[%clk 0:03:06.3]} 8. e4 {[%clk 0:02:53.5]}
8... h6 {[%clk 0:03:07.2]} 9. Be3 {[%clk 0:02:50.8]} 9... Bb7 {[%clk 0:03:04.2]}
10. Qc2 {[%clk 0:02:49.6]} 10... Ne7 {[%clk 0:03:01]} 11. d5 {[%clk 0:02:42.7]}
11... cxd5 {[%clk 0:02:57.9]} 12. exd5 {[%clk 0:02:42.5]} 12... e5 {[%clk
0:02:57.8]} 13. Nh4 {[%clk 0:02:26.1]} 13... f5 {[%clk 0:02:31.2]} 14. f4 {[%clk
0:02:22.6]} 14... Nd7 {[%clk 0:02:13.7]} 15. Bh3 {[%clk 0:02:08.8]} 15... Bg7
{[%clk 0:01:56.4]} 16. fxe5 {[%clk 0:01:48.1]} 16... Nxe5 {[%clk 0:01:53.6]} 17.
Nxg6 {[%clk 0:01:35]} 17... N7xg6 {[%clk 0:01:40.6]} 18. Bxf5 {[%clk 0:01:34.9]}
18... Nf8 {[%clk 0:01:13.6]} 19. Rae1 {[%clk 0:01:29]} 19... Qc7 {[%clk
0:01:02.1]} 20. Ne4 {[%clk 0:01:23.5]} 20... Nfd7 {[%clk 0:00:51.3]} 21. Bf4
{[%clk 0:00:36.5]} 21... O-O-O {[%clk 0:00:46.3]} 22. Qc3 {[%clk 0:00:21.4]}
22... Kb8 {[%clk 0:00:44.4]} 23. Bxd7 {[%clk 0:00:20.2]} 23... Rxd7 {[%clk
0:00:43.6]} 24. Nxd6 {[%clk 0:00:18]} 24... Qxd6 {[%clk 0:00:12.9]} 25. Bxe5
{[%clk 0:00:17.6]} 25... Bxe5 {[%clk 0:00:12.4]} 26. Rxe5 {[%clk 0:00:13.7]}
26... Rc8 {[%clk 0:00:12.3]} 27. Re6 {[%clk 0:00:13.2]} 27... Qc5+ {[%clk
0:00:11.5]} 28. Kg2 {[%clk 0:00:10.8]} 28... Bxd5+ {[%clk 0:00:10.9]} 29. cxd5
{[%clk 0:00:09.6]} 29... Qxd5+ {[%clk 0:00:11.8]} 30. Qf3 {[%clk 0:00:05.5]}
30... Qxe6 {[%clk 0:00:11.7]} 31. Qf4+ {[%clk 0:00:05.8]} 31... Qd6 {[%clk
0:00:11]} 32. Qf3 {[%clk 0:00:06.1]} 32... Qd5 {[%clk 0:00:11]} 0-1

[Event "*** Titled Tuesday Blitz"]
[Site "Chess.com"]
[Date "2020.10.20"]
[Round "11"]
[White "shaheus"]
[Black "UmarovSabir"]
[Result "1/2-1/2"]
[WhiteElo "2178"]
[BlackElo "2321"]
[TimeControl "180+1"]
[EndTime "12:08:29 PDT"]
[Termination "Game drawn by repetition"]

1. e4 {[%clk 0:02:59.5]} 1... g6 {[%clk 0:02:58]} 2. d4 {[%clk 0:02:59]} 2...
Bg7 {[%clk 0:02:58.6]} 3. Nf3 {[%clk 0:02:58.8]} 3... c6 {[%clk 0:02:58.5]} 4.
Nc3 {[%clk 0:02:57.7]} 4... d5 {[%clk 0:02:58.7]} 5. exd5 {[%clk 0:02:45.8]}
5... cxd5 {[%clk 0:02:59.6]} 6. Be2 {[%clk 0:02:46.3]} 6... Nf6 {[%clk
0:02:59.1]} 7. O-O {[%clk 0:02:46.4]} 7... O-O {[%clk 0:02:58.2]} 8. Bf4 {[%clk
0:02:46.3]} 8... Nc6 {[%clk 0:02:57.4]} 9. Ne5 {[%clk 0:02:45.5]} 9... Qb6
{[%clk 0:02:46.5]} 10. Nxc6 {[%clk 0:02:41.6]} 10... Qxc6 {[%clk 0:02:39.3]} 11.
Be5 {[%clk 0:02:39.8]} 11... a6 {[%clk 0:02:24.9]} 12. a3 {[%clk 0:02:35.3]}
12... Bf5 {[%clk 0:02:23.3]} 13. Bd3 {[%clk 0:02:34.5]} 13... Qd7 {[%clk
0:01:37.5]} 14. Re1 {[%clk 0:02:23.7]} 14... Rac8 {[%clk 0:01:34.4]} 15. Qf3
{[%clk 0:02:19.5]} 15... Bxd3 {[%clk 0:01:28.4]} 16. Qxd3 {[%clk 0:02:18.9]}
16... b5 {[%clk 0:01:23.4]} 17. Rad1 {[%clk 0:02:13.5]} 17... Rc6 {[%clk
0:01:15.8]} 18. Nb1 {[%clk 0:02:06.1]} 18... Rfc8 {[%clk 0:01:05.7]} 19. c3
{[%clk 0:02:05.9]} 19... Ne4 {[%clk 0:00:59.5]} 20. Bxg7 {[%clk 0:02:03.9]}
20... Kxg7 {[%clk 0:01:00.4]} 21. Nd2 {[%clk 0:02:03.3]} 21... Nxd2 {[%clk
0:00:47.4]} 22. Rxd2 {[%clk 0:02:03.2]} 22... Re6 {[%clk 0:00:35.8]} 23. Rde2
{[%clk 0:02:01.3]} 23... Rxe2 {[%clk 0:00:35.2]} 24. Rxe2 {[%clk 0:02:01.7]}
24... a5 {[%clk 0:00:34]} 25. h3 {[%clk 0:01:51.8]} 25... Qd6 {[%clk 0:00:29]}
26. Qxb5 {[%clk 0:01:35.8]} 26... Ra8 {[%clk 0:00:10.3]} 27. Qc5 {[%clk
0:01:24.2]} 27... Qxc5 {[%clk 0:00:08.8]} 28. dxc5 {[%clk 0:01:24.5]} 28... a4
{[%clk 0:00:08.4]} 29. Rxe7 {[%clk 0:01:21.3]} 29... Rb8 {[%clk 0:00:08]} 30.
Ra7 {[%clk 0:01:15.6]} 30... Rxb2 {[%clk 0:00:07.3]} 31. Rxa4 {[%clk 0:01:15.4]}
31... Rb3 {[%clk 0:00:04.4]} 32. Rd4 {[%clk 0:00:59.2]} 32... Rxa3 {[%clk
0:00:02.8]} 33. Rxd5 {[%clk 0:00:59.6]} 33... Rxc3 {[%clk 0:00:03.7]} 34. Kf1
{[%clk 0:00:56.9]} 34... Kf6 {[%clk 0:00:04.1]} 35. Ke1 {[%clk 0:00:56.4]} 35...
Ke6 {[%clk 0:00:04.6]} 36. Rd6+ {[%clk 0:00:35.1]} 36... Ke7 {[%clk 0:00:04.8]}
37. Rc6 {[%clk 0:00:35.3]} 37... Kd7 {[%clk 0:00:05.1]} 38. Rd6+ {[%clk
0:00:31.2]} 38... Ke7 {[%clk 0:00:05.4]} 39. Rd5 {[%clk 0:00:28]} 39... Ke6
{[%clk 0:00:05.2]} 40. Rd6+ {[%clk 0:00:27.9]} 40... Ke7 {[%clk 0:00:05.2]}
1/2-1/2

[Event "*** Titled Tuesday Blitz"]
[Site "Chess.com"]
[Date "2020.10.20"]
[Round "11"]
[White "GMJustin"]
[Black "GlennTipton"]
[Result "1-0"]
[WhiteElo "2286"]
[BlackElo "2407"]
[TimeControl "180+1"]
[EndTime "12:08:32 PDT"]
[Termination "GMJustin won by resignation"]

1. e4 {[%clk 0:02:51.9]} 1... e5 {[%clk 0:02:58.9]} 2. f4 {[%clk 0:02:49.9]}
2... Nc6 {[%clk 0:02:56.1]} 3. Nf3 {[%clk 0:02:47.5]} 3... f5 {[%clk 0:02:54.9]}
4. exf5 {[%clk 0:02:29.2]} 4... e4 {[%clk 0:02:53.2]} 5. Ne5 {[%clk 0:02:28.7]}
5... Nf6 {[%clk 0:02:51.8]} 6. d3 {[%clk 0:02:18.9]} 6... Bc5 {[%clk 0:01:52.2]}
7. dxe4 {[%clk 0:02:12.7]} 7... O-O {[%clk 0:01:39.4]} 8. Bc4+ {[%clk
0:01:58.5]} 8... Kh8 {[%clk 0:01:38.1]} 9. Nc3 {[%clk 0:01:41.4]} 9... Nxe5
{[%clk 0:01:09]} 10. fxe5 {[%clk 0:01:41.1]} 10... Nxe4 {[%clk 0:01:09.4]} 11.
Nxe4 {[%clk 0:01:27.9]} 11... Qh4+ {[%clk 0:01:08.9]} 12. Ng3 {[%clk 0:01:27.5]}
12... Qxc4 {[%clk 0:01:08.6]} 13. Qd3 {[%clk 0:01:23.9]} 13... Qxd3 {[%clk
0:01:02.8]} 14. cxd3 {[%clk 0:01:23.7]} 14... Bd4 {[%clk 0:01:03.7]} 15. Bf4
{[%clk 0:00:41]} 15... Bxb2 {[%clk 0:00:59]} 16. Rb1 {[%clk 0:00:40.6]} 16...
Bxe5 {[%clk 0:00:56.9]} 17. Bxe5 {[%clk 0:00:39.8]} 17... Re8 {[%clk 0:00:57.8]}
18. Kd2 {[%clk 0:00:30.5]} 18... Rxe5 {[%clk 0:00:55.8]} 19. Rhe1 {[%clk
0:00:29.8]} 19... Rxe1 {[%clk 0:00:47.7]} 20. Rxe1 {[%clk 0:00:29.3]} 20... Kg8
{[%clk 0:00:48.1]} 21. Re8+ {[%clk 0:00:28.5]} 21... Kf7 {[%clk 0:00:48.3]} 22.
Rh8 {[%clk 0:00:27.3]} 22... h6 {[%clk 0:00:48.3]} 23. Nh5 {[%clk 0:00:16.7]}
23... d5 {[%clk 0:00:47.7]} 24. g4 {[%clk 0:00:15]} 24... Bxf5 {[%clk
0:00:14.7]} 25. Rxa8 {[%clk 0:00:14]} 25... Bxg4 {[%clk 0:00:15.6]} 26. Nf4
{[%clk 0:00:14]} 26... a6 {[%clk 0:00:11.9]} 27. Ra7 {[%clk 0:00:13.6]} 27...
Bc8 {[%clk 0:00:08.6]} 28. Nxd5 {[%clk 0:00:13.5]} 28... Ke6 {[%clk 0:00:07.2]}
29. Nxc7+ {[%clk 0:00:13.2]} 29... Kd6 {[%clk 0:00:07.5]} 30. Ne8+ {[%clk
0:00:12.2]} 30... Kc6 {[%clk 0:00:07.7]} 31. Ra8 {[%clk 0:00:12.1]} 31... Kd7
{[%clk 0:00:07.8]} 32. Nxg7 {[%clk 0:00:11.8]} 32... b5 {[%clk 0:00:08.6]} 33.
d4 {[%clk 0:00:11.3]} 33... Bb7 {[%clk 0:00:06.7]} 34. Rh8 {[%clk 0:00:11.2]}
34... Bd5 {[%clk 0:00:06.7]} 35. a3 {[%clk 0:00:09.7]} 1-0

[Event "*** Titled Tuesday Blitz"]
[Site "Chess.com"]
[Date "2020.10.20"]
[Round "11"]
[White "chessplayer9919"]
[Black "UKR_Master"]
[Result "1-0"]
[WhiteElo "2621"]
[BlackElo "2457"]
[TimeControl "180+1"]
[EndTime "12:08:34 PDT"]
[Termination "chessplayer9919 won by resignation"]

1. e4 {[%clk 0:03:00.9]} 1... c5 {[%clk 0:02:59.7]} 2. Nc3 {[%clk 0:03:00.5]}
2... Nc6 {[%clk 0:02:59.4]} 3. Bb5 {[%clk 0:03:00.5]} 3... Nd4 {[%clk
0:02:59.3]} 4. Nf3 {[%clk 0:03:01]} 4... e6 {[%clk 0:02:58.9]} 5. O-O {[%clk
0:02:59.4]} 5... a6 {[%clk 0:02:58.7]} 6. Bd3 {[%clk 0:02:59.2]} 6... Nc6 {[%clk
0:02:58.6]} 7. b3 {[%clk 0:02:57.6]} 7... Nf6 {[%clk 0:02:57.9]} 8. Bb2 {[%clk
0:02:53.1]} 8... d6 {[%clk 0:02:58.1]} 9. Re1 {[%clk 0:02:53.3]} 9... Be7 {[%clk
0:02:57.9]} 10. e5 {[%clk 0:02:50.8]} 10... dxe5 {[%clk 0:02:57.7]} 11. Nxe5
{[%clk 0:02:51.7]} 11... Nxe5 {[%clk 0:02:57.6]} 12. Rxe5 {[%clk 0:02:52.6]}
12... Qc7 {[%clk 0:02:58.1]} 13. Re1 {[%clk 0:02:29.9]} 13... O-O {[%clk
0:02:57.5]} 14. Ne4 {[%clk 0:02:29.2]} 14... Nd5 {[%clk 0:02:47.9]} 15. Qh5
{[%clk 0:02:21.5]} 15... h6 {[%clk 0:02:15.8]} 16. Qg4 {[%clk 0:01:52.7]} 16...
e5 {[%clk 0:02:15]} 17. Qg3 {[%clk 0:01:32]} 17... f6 {[%clk 0:02:03.8]} 18. Bc4
{[%clk 0:00:48.2]} 18... Be6 {[%clk 0:02:02.8]} 19. Nc3 {[%clk 0:00:44.3]} 19...
Rad8 {[%clk 0:01:54.5]} 20. Qf3 {[%clk 0:00:35.7]} 20... Qc6 {[%clk 0:01:32.3]}
21. a4 {[%clk 0:00:28.2]} 21... Rd7 {[%clk 0:01:28.3]} 22. Nxd5 {[%clk
0:00:25.3]} 22... Bxd5 {[%clk 0:01:28.3]} 23. Bxd5+ {[%clk 0:00:25.2]} 23...
Qxd5 {[%clk 0:01:28.2]} 24. Qxd5+ {[%clk 0:00:25.1]} 24... Rxd5 {[%clk
0:01:29.1]} 25. d3 {[%clk 0:00:26]} 25... Bd8 {[%clk 0:01:24.7]} 26. Kf1 {[%clk
0:00:21.2]} 26... Ba5 {[%clk 0:01:24.3]} 27. Re4 {[%clk 0:00:20.8]} 27... Rc8
{[%clk 0:01:23.1]} 28. g4 {[%clk 0:00:20.7]} 28... Kf7 {[%clk 0:01:21.1]} 29. h4
{[%clk 0:00:20.9]} 29... Ke6 {[%clk 0:01:19.7]} 30. f4 {[%clk 0:00:19.8]} 30...
Kd6 {[%clk 0:01:16.1]} 31. f5 {[%clk 0:00:15.8]} 31... Bd2 {[%clk 0:01:10.9]}
32. Ke2 {[%clk 0:00:15.5]} 32... Bf4 {[%clk 0:01:09.7]} 33. c4 {[%clk
0:00:15.8]} 33... Rd4 {[%clk 0:01:08.8]} 34. Bxd4 {[%clk 0:00:16.1]} 34... cxd4
{[%clk 0:01:09.5]} 35. b4 {[%clk 0:00:16.7]} 35... Kc6 {[%clk 0:01:02.9]} 36.
Kf3 {[%clk 0:00:15.5]} 36... Bd2 {[%clk 0:01:02.3]} 37. Rb1 {[%clk 0:00:14.4]}
37... Kd6 {[%clk 0:01:01.2]} 38. Re2 {[%clk 0:00:14.3]} 38... Bf4 {[%clk
0:01:00.4]} 39. Ke4 {[%clk 0:00:14.4]} 39... Rc6 {[%clk 0:00:55.6]} 40. Rc2
{[%clk 0:00:13.1]} 40... b6 {[%clk 0:00:54.4]} 41. c5+ {[%clk 0:00:05.1]} 41...
bxc5 {[%clk 0:00:42.2]} 42. bxc5+ {[%clk 0:00:05.3]} 42... Rxc5 {[%clk
0:00:43.1]} 43. Rxc5 {[%clk 0:00:04.4]} 43... Kxc5 {[%clk 0:00:44]} 44. Rb7
{[%clk 0:00:04.7]} 44... a5 {[%clk 0:00:43.4]} 45. Rb5+ {[%clk 0:00:04.3]} 45...
Kc6 {[%clk 0:00:43.3]} 46. Rxa5 {[%clk 0:00:05.2]} 46... Bg3 {[%clk 0:00:44.2]}
47. h5 {[%clk 0:00:05.4]} 47... Bf4 {[%clk 0:00:43.8]} 48. Ra7 {[%clk
0:00:05.5]} 48... Bg5 {[%clk 0:00:44.7]} 49. Rxg7 {[%clk 0:00:06]} 49... Kb6
{[%clk 0:00:45.3]} 50. Rxg5 {[%clk 0:00:06.1]} 1-0